bitfinex-derivatives/quotes_BTCF0:USTF0_20241214
["timestamp","ask_amount","ask_price","bid_price","bid_amount"]
[1734181475297,0.559607,101400.0,101380.0,0.09336402]
[1734181475499,0.446,101390.0,101380.0,0.14268002]
[1734181479807,0.0852,101390.0,101380.0,0.14268002]
[1734181480501,0.0852,101390.0,101380.0,1.27268002]
[1734181480703,0.446,101390.0,101380.0,1.27268002]
[1734181483909,0.446,101390.0,101380.0,1.179316]
[1734181484106,0.049316,101380.0,101370.0,0.01298395]
[1734181484310,0.451316,101380.0,101370.0,0.01298395]
[1734181484699,0.451316,101380.0,101370.0,7.689e-05]
[1734181484906,0.049321,101370.0,101360.0,0.05079252]
[1734181485203,0.4455,101370.0,101360.0,0.14415654]
[1734181485406,0.4455,101370.0,101360.0,0.14465654]
[1734181485407,0.7098928,101370.0,101360.0,0.14465654]
[1734181485811,0.70997283,101370.0,101360.0,0.14465654]
[1734181486215,0.56282129,101370.0,101360.0,0.14465654]
[1734181486509,0.08478003,101370.0,101360.0,0.14415654]
[1734181486809,0.08478003,101370.0,101360.0,0.15663567]
[1734181487416,0.20202129,101370.0,101360.0,0.16502567]
[1734181488315,0.20202129,101370.0,101360.0,0.16452567]
[1734181488714,0.20202129,101370.0,101360.0,0.70198916]
[1734181488904,0.20202129,101370.0,101360.0,0.34907916]
[1734181489108,0.11732129,101370.0,101360.0,0.70987916]
[1734181489411,0.11732129,101370.0,101360.0,0.71037916]
[1734181491213,0.11732129,101370.0,101360.0,0.34957916]
[1734181492208,0.11732129,101370.0,101360.0,0.58624929]
[1734181492413,0.11732129,101370.0,101360.0,0.94704929]
[1734181492618,8.003e-05,101370.0,101360.0,0.96184929]
[1734181492818,8.003e-05,101370.0,101360.0,1.9151858]
[1734181493118,8.003e-05,101370.0,101360.0,2.09224615]
[1734181493615,8.003e-05,101370.0,101360.0,2.21108274]
[1734181494325,8.003e-05,101370.0,101360.0,2.19628274]
[1734181494622,8.003e-05,101370.0,101360.0,1.9003858]
[1734181495126,8.003e-05,101370.0,101360.0,0.7703858]
[1734181495726,8.003e-05,101370.0,101360.0,1.9003858]
[1734181496318,8.003e-05,101370.0,101360.0,2.07747877]
[1734181498325,8.003e-05,101370.0,101360.0,1.62331475]
[1734181498526,0.16022129,101370.0,101360.0,1.48000864]
[1734181499917,0.57034229,101370.0,101360.0,1.38664462]
[1734181500117,0.57034229,101370.0,101360.0,0.07955165]
[1734181500315,0.71749383,101370.0,101360.0,0.07955165]
[1734181500819,0.60025257,101370.0,101360.0,0.07808313]
[1734181501019,0.77665073,101370.0,101360.0,0.07808313]
[1734181501209,0.60025257,101370.0,101360.0,0.065604]
[1734181502325,0.71769519,101370.0,101360.0,0.065604]
[1734181503627,0.87001475,101370.0,101360.0,0.065604]
[1734181503821,0.69361659,101370.0,101360.0,0.065604]
[1734181504029,0.87001475,101370.0,101360.0,0.065604]
[1734181504219,0.69361659,101370.0,101360.0,0.065604]
[1734181504818,0.33281659,101370.0,101360.0,0.065604]
[1734181505325,1.05441659,101370.0,101360.0,0.065604]
[1734181509429,1.17181359,101370.0,101360.0,0.065604]
[1734181509628,1.07844957,101370.0,101360.0,0.065604]
[1734181509927,0.96105257,101370.0,101360.0,0.065604]
[1734181510325,0.96105257,101370.0,101360.0,0.065104]
[1734181510531,0.98624046,101370.0,101360.0,0.15846802]
[1734181510729,0.83908892,101370.0,101360.0,0.15846802]
[1734181511025,0.83908892,101370.0,101360.0,1.46556099]
[1734181511626,0.11748892,101370.0,101360.0,1.82636099]
[1734181511824,8.003e-05,101370.0,101360.0,1.64926802]
[1734181512024,8.003e-05,101370.0,101360.0,1.94516496]
[1734181512225,8.003e-05,101370.0,101360.0,2.35884217]
[1734181512421,8.003e-05,101370.0,101360.0,2.16485759]
[1734181513524,8.003e-05,101370.0,101360.0,2.51977689]
[1734181517329,8.003e-05,101370.0,101360.0,2.81977689]
[1734181518636,0.0005,101380.0,101370.0,0.049321]
[1734181518833,0.0005,101380.0,101370.0,0.83278147]
[1734181519035,0.0005,101380.0,101370.0,1.43274037]
[1734181519227,0.0005,101380.0,101370.0,1.19680794]
[1734181519430,0.0428,101390.0,101380.0,0.049316]
[1734181519630,0.0428,101390.0,101380.0,0.31958692]
[1734181519835,0.0428,101390.0,101380.0,0.55546015]
[1734181520038,0.0428,101390.0,101380.0,0.57124015]
[1734181520337,0.0428,101390.0,101380.0,0.73706692]
[1734181521229,0.0428,101390.0,101380.0,0.97294015]
[1734181521429,0.0428,101390.0,101380.0,0.73706692]
[1734181521836,0.66278872,101400.0,101380.0,0.73706692]
[1734181522029,0.66278872,101400.0,101390.0,0.14267602]
[1734181522224,0.18457983,101400.0,101390.0,0.14267602]
[1734181523238,0.14247983,101400.0,101390.0,0.14267602]
[1734181523536,0.14247983,101400.0,101390.0,0.50347602]
[1734181524535,0.14247983,101400.0,101390.0,0.14267602]
[1734181524929,0.14247983,101400.0,101390.0,1.27267602]
[1734181525637,0.14247983,101400.0,101390.0,0.14267602]
[1734181527037,0.14247983,101400.0,101390.0,0.15559036]
[1734181529440,0.14247983,101400.0,101390.0,0.06222634]
[1734181529632,0.18217983,101400.0,101390.0,0.06222634]
[1734181530240,0.5415,101400.0,101390.0,0.06222634]
[1734181530930,0.590807,101400.0,101390.0,0.06222634]
[1734181532041,0.5415,101400.0,101390.0,0.15559036]
[1734181532233,0.5415,101400.0,101390.0,0.06222634]
[1734181534343,0.542,101400.0,101390.0,0.06222634]
[1734181535131,0.1812,101400.0,101390.0,0.06222634]
[1734181535541,0.1812,101400.0,101390.0,0.15559036]
[1734181536437,0.542,101400.0,101390.0,0.15559036]
[1734181536740,0.542,101400.0,101390.0,1.28559036]
[1734181538348,0.65940889,101400.0,101390.0,1.28559036]
[1734181538641,0.542,101400.0,101390.0,1.46249726]
[1734181539433,0.65940889,101400.0,101390.0,1.46249726]
[1734181539946,0.65940889,101400.0,101390.0,0.33249726]
[1734181540242,0.65940889,101400.0,101390.0,0.56837049]
[1734181540444,0.65940889,101400.0,101390.0,1.69837049]
[1734181541143,0.29860889,101400.0,101390.0,1.69837049]
[1734181541339,0.65940889,101400.0,101390.0,1.52146359]
[1734181542145,0.65940889,101400.0,101390.0,1.69869247]
[1734181542346,0.80656043,101400.0,101390.0,1.69869247]
[1734181544441,0.80656043,101400.0,101390.0,1.52146359]
[1734181545042,0.80656043,101400.0,101390.0,1.6987512]
[1734181545338,0.80656043,101400.0,101390.0,1.52146359]
[1734181546544,0.80606043,101400.0,101390.0,1.52146359]
[1734181547141,0.80606043,101400.0,101390.0,1.4893779]
[1734181547341,0.80606043,101400.0,101390.0,1.78527484]
[1734181547743,0.76636043,101400.0,101390.0,1.78527484]
[1734181548344,0.76636043,101400.0,101390.0,2.0054755]
[1734181548345,0.64895154,101400.0,101390.0,2.0054755]
[1734181549150,0.64895154,101400.0,101390.0,2.0133655]
[1734181549341,0.64895154,101400.0,101390.0,2.0212555]
[1734181550534,0.64895154,101400.0,101390.0,2.24193917]
[1734181550734,0.64895154,101400.0,101390.0,2.02173851]
[1734181552239,0.7667288,101400.0,101390.0,2.02173851]
[1734181552444,0.64895154,101400.0,101390.0,2.02173851]
[1734181553537,0.76673017,101400.0,101390.0,2.02173851]
[1734181554143,0.64895154,101400.0,101390.0,2.02173851]
[1734181554652,0.76673513,101400.0,101390.0,2.02173851]
[1734181554945,0.64895154,101400.0,101390.0,2.02173851]
[1734181555342,0.64895154,101400.0,101390.0,1.78586528]
[1734181555941,0.64895154,101400.0,101390.0,2.02244443]
[1734181556942,0.64895154,101400.0,101390.0,0.89244443]
[1734181557145,0.64895154,101400.0,101390.0,0.8311661]
[1734181557346,0.69825854,101400.0,101390.0,0.8311661]
[1734181557551,0.69825854,101400.0,101390.0,0.89244443]
[1734181559249,0.69825854,101400.0,101390.0,0.8311661]
[1734181559250,0.75953687,101400.0,101390.0,0.8311661]
[1734181559448,0.93593503,101400.0,101390.0,0.31458549]
[1734181559649,0.72750516,101400.0,101390.0,0.31458549]
[1734181560940,0.78878349,101400.0,101390.0,0.31458549]
[1734181561143,0.78878349,101400.0,101390.0,0.07800634]
[1734181562552,0.78878349,101400.0,101390.0,0.02869434]
[1734181562553,0.85006182,101400.0,101390.0,0.02869434]
[1734181562748,0.67366366,101400.0,101390.0,0.01578]
[1734181562949,0.87946151,101400.0,101380.0,0.04689401]
[1734181563157,0.61002572,101390.0,101380.0,0.04689401]
[1734181563355,0.61002572,101390.0,101380.0,0.04739401]
[1734181563356,0.55329033,101390.0,101380.0,0.04739401]
[1734181564149,0.75908818,101390.0,101380.0,0.04739401]
[1734181564350,0.75908818,101390.0,101380.0,0.06267401]
[1734181564650,0.55329033,101390.0,101380.0,0.06267401]
[1734181565153,0.55329033,101390.0,101380.0,0.01578]
[1734181565348,0.55329033,101390.0,101380.0,0.01628]
[1734181565551,0.72962062,101390.0,101380.0,0.01628]
[1734181566349,0.72962062,101390.0,101380.0,0.01578]
[1734181567456,0.72962062,101390.0,101380.0,0.01628]
[1734181568461,0.72962062,101390.0,101380.0,0.01578]
[1734181568957,0.72962062,101390.0,101380.0,0.065096]
[1734181569146,0.7001522,101390.0,101380.0,0.065096]
[1734181569348,0.7001522,101390.0,101380.0,0.12687433]
[1734181569551,0.7001522,101390.0,101380.0,0.065596]
[1734181570152,0.63887387,101390.0,101380.0,0.12687433]
[1734181570352,0.7001522,101390.0,101380.0,0.12637433]
[1734181570545,0.7001522,101390.0,101380.0,0.065096]
[1734181571453,0.7001522,101390.0,101380.0,0.065596]
[1734181572449,0.7001522,101390.0,101380.0,0.065096]
[1734181573453,0.7001522,101390.0,101380.0,0.065596]
[1734181574461,0.7001522,101390.0,101380.0,0.065096]
[1734181575359,0.59757387,101390.0,101380.0,0.12637433]
[1734181575561,0.71510329,101390.0,101380.0,0.12687433]
[1734181576450,0.71510329,101390.0,101380.0,0.12637433]
[1734181577553,0.71510329,101390.0,101380.0,0.12687433]
[1734181578563,0.71510329,101390.0,101380.0,0.12637433]
[1734181579663,0.71510329,101390.0,101380.0,0.12687433]
[1734181579861,0.71510329,101390.0,101380.0,0.065596]
[1734181580063,0.59757387,101390.0,101380.0,0.065596]
[1734181580254,0.63967387,101390.0,101380.0,0.065596]
[1734181580451,0.7009522,101390.0,101380.0,0.01628]
[1734181581266,0.7009522,101390.0,101380.0,0.065596]
[1734181584671,0.7009522,101390.0,101380.0,0.065096]
[1734181585367,0.63967387,101390.0,101380.0,0.12637433]
[1734181586172,0.54826187,101390.0,101380.0,0.12637433]
[1734181586371,0.54826187,101390.0,101380.0,0.18765266]
[1734181586566,0.50766187,101390.0,101380.0,0.16657433]
[1734181587271,0.50766187,101390.0,101380.0,0.22785266]
[1734181587567,0.62533372,101390.0,101380.0,0.22785266]
[1734181588071,0.62533372,101390.0,101380.0,0.16657433]
[1734181588370,0.62536265,101390.0,101380.0,1.35785266]
[1734181588975,0.62536265,101390.0,101380.0,1.59443181]
[1734181590681,0.47850078,101390.0,101380.0,1.59443181]
[1734181591476,0.62536265,101390.0,101380.0,1.59443181]
[1734181591670,0.47850078,101390.0,101380.0,1.59443181]
[1734181592184,0.20599554,101390.0,101380.0,1.95523181]
[1734181592387,0.20599554,101390.0,101380.0,1.99583181]
[1734181592586,0.20599554,101390.0,101380.0,2.29172875]
[1734181592885,0.1377472,101390.0,101380.0,2.11642793]
[1734181593085,0.04973218,101390.0,101380.0,2.0551496]
[1734181593284,0.02949637,101390.0,101380.0,2.0551496]
[1734181593481,0.02949637,101390.0,101380.0,2.27705377]
[1734181593680,0.00964342,101390.0,101380.0,2.3383321]
[1734181593980,0.00964342,101390.0,101380.0,2.27705377]
[1734181594685,0.4613,101400.0,101390.0,0.049312]
[1734181594979,0.4613,101400.0,101390.0,0.56555986]
[1734181595582,0.4608,101400.0,101390.0,0.56555986]
[1734181596087,0.4608,101400.0,101390.0,0.58133986]
[1734181596274,0.1,101400.0,101390.0,1.06087843]
[1734181596584,0.1005,101400.0,101390.0,0.82625982]
[1734181597180,0.1005,101400.0,101390.0,1.12215676]
[1734181597577,0.1,101400.0,101390.0,1.12215676]
[1734181597881,0.1,101400.0,101390.0,0.82625982]
[1734181598486,0.1005,101400.0,101390.0,0.82625982]
[1734181599291,0.1005,101400.0,101390.0,0.76498149]
[1734181599585,0.1,101400.0,101390.0,0.94201185]
[1734181600593,0.1005,101400.0,101390.0,0.94201185]
[1734181601690,0.1,101400.0,101390.0,1.00329018]
[1734181602483,0.1005,101400.0,101390.0,2.14516379]
[1734181603480,0.1,101400.0,101390.0,2.14516379]
[1734181604096,0.1,101400.0,101390.0,1.96813343]
[1734181604586,0.1005,101400.0,101390.0,2.14509375]
[1734181604783,0.1005,101400.0,101390.0,2.26403037]
[1734181605190,0.1005,101400.0,101390.0,1.73192227]
[1734181605584,0.1,101400.0,101390.0,2.26280809]
[1734181605780,0.1,101400.0,101390.0,2.48593168]
[1734181605987,0.1,101400.0,101390.0,2.26280809]
[1734181606293,0.1,101400.0,101390.0,2.48591305]
[1734181606590,0.1005,101400.0,101390.0,2.48586335]
[1734181606994,0.1005,101400.0,101390.0,1.96787152]
[1734181607196,0.1005,101400.0,101390.0,2.26280809]
[1734181607589,0.1,101400.0,101390.0,2.26280809]
[1734181608291,0.1,101400.0,101390.0,1.96787152]
[1734181608596,0.1005,101400.0,101390.0,2.26280809]
[1734181608794,0.1005,101400.0,101390.0,1.96787152]
[1734181609093,0.1005,101400.0,101390.0,2.26280809]
[1734181609292,0.1005,101400.0,101390.0,1.96787152]
[1734181609990,0.1005,101400.0,101390.0,1.80371486]
[1734181610189,0.1843,101400.0,101390.0,0.91194092]
[1734181611297,0.1843,101400.0,101390.0,0.55114092]
[1734181612995,0.5451,101400.0,101390.0,0.31519167]
[1734181613602,0.5451,101400.0,101390.0,0.55114092]
[1734181613899,0.1843,101400.0,101390.0,0.55114092]
[1734181614294,0.5451,101400.0,101390.0,0.55114092]
[1734181614599,0.5446,101400.0,101390.0,0.55114092]
[1734181615192,0.593907,101400.0,101390.0,0.55114092]
[1734181618498,0.74086457,101400.0,101390.0,0.37419319]
[1734181619002,0.69155757,101400.0,101390.0,0.37419319]
[1734181619401,0.5446,101400.0,101390.0,0.37419319]
[1734181619791,0.69155757,101400.0,101390.0,0.31291486]
[1734181619996,0.74086457,101400.0,101390.0,0.49018858]
[1734181620202,0.74086457,101400.0,101390.0,0.55146691]
[1734181620400,0.97849199,101400.0,101390.0,0.19305372]
[1734181620608,0.049312,101390.0,101380.0,0.28576325]
[1734181620811,0.47139033,101390.0,101380.0,0.28576325]
[1734181620997,0.64773942,101390.0,101380.0,0.049814]
[1734181621411,0.79484591,101390.0,101380.0,0.049814]
[1734181621604,0.64773942,101390.0,101380.0,0.049314]
[1734181621800,0.64773942,101390.0,101380.0,0.065094]
[1734181622210,0.7948035,101390.0,101380.0,0.065094]
[1734181622507,0.7948035,101390.0,101380.0,0.065594]
[1734181623509,0.7948035,101390.0,101380.0,0.065094]
[1734181623712,0.8364035,101390.0,101380.0,0.065094]
[1734181624306,0.66005441,101390.0,101380.0,0.065094]
[1734181624512,0.66005441,101390.0,101380.0,0.065594]
[1734181626915,0.66005441,101390.0,101380.0,0.01628]
[1734181627410,0.68933942,101390.0,101380.0,0.01628]
[1734181628407,0.83626403,101390.0,101380.0,0.01628]
[1734181629608,0.59863661,101390.0,101380.0,0.12687433]
[1734181630115,0.61831494,101390.0,101380.0,0.12687433]
[1734181633216,0.55703661,101390.0,101380.0,0.12687433]
[1734181633421,0.14692461,101390.0,101380.0,0.18815266]
[1734181633710,0.74133261,101400.0,101390.0,0.049312]
[1734181633912,0.594408,101400.0,101390.0,0.11059033]
[1734181634110,0.38053261,101400.0,101390.0,1.24059033]
[1734181634320,0.594408,101400.0,101390.0,0.11059033]
[1734181635307,0.510608,101400.0,101390.0,0.11059033]
[1734181635713,0.4613,101400.0,101390.0,0.15099033]
[1734181636015,0.4613,101400.0,101390.0,0.19309033]
[1734181636409,0.1005,101400.0,101390.0,0.19309033]
[1734181639208,0.1005,101400.0,101390.0,0.61516866]
[1734181639516,0.1005,101400.0,101390.0,0.86258136]
[1734181639921,0.1005,101400.0,101390.0,0.80130303]
[1734181640320,0.1005,101400.0,101390.0,1.93130303]
[1734181640817,0.1005,101400.0,101390.0,1.57050303]
[1734181641019,0.1005,101400.0,101390.0,1.57839303]
[1734181642715,0.1005,101400.0,101390.0,1.93919303]
[1734181642916,0.1005,101400.0,101390.0,1.57839303]
[1734181643916,0.1005,101400.0,101390.0,1.93919303]
[1734181645311,0.1005,101400.0,101390.0,2.00047136]
[1734181645912,0.1005,101400.0,101390.0,1.94708303]
[1734181647017,0.1005,101400.0,101390.0,2.00836136]
[1734181649424,0.1005,101400.0,101390.0,1.58628303]
[1734181649816,0.1005,101400.0,101390.0,0.45628303]
[1734181650316,0.1005,101400.0,101390.0,0.22033378]
[1734181652515,0.1,101400.0,101390.0,0.22033378]
[1734181654017,0.1,101400.0,101390.0,0.17823378]
[1734181655327,0.1,101400.0,101390.0,0.19784121]
[1734181655727,0.1,101400.0,101390.0,1.32784121]
[1734181657821,0.4608,101400.0,101390.0,1.28744121]
[1734181658324,0.57836635,101400.0,101390.0,1.28744121]
[1734181659023,0.62767335,101400.0,101390.0,1.28744121]
[1734181660827,0.62767335,101400.0,101390.0,1.26783378]
[1734181661325,0.77459796,101400.0,101390.0,1.26783378]
[1734181661525,0.62767335,101400.0,101390.0,1.26783378]
[1734181662218,0.77459796,101400.0,101390.0,1.26783378]
[1734181662428,0.72529096,101400.0,101390.0,1.50378303]
[1734181663330,0.60772461,101400.0,101390.0,1.50378303]
[1734181668036,0.65703161,101400.0,101390.0,1.50378303]
[1734181671837,0.65703161,101400.0,101390.0,0.37378303]
[1734181672028,0.65703161,101400.0,101390.0,0.3125047]
[1734181672934,0.71830994,101400.0,101390.0,0.3125047]
[1734181676224,0.65703161,101400.0,101390.0,0.37378303]
[1734181676841,0.65703161,101400.0,101390.0,0.41668303]
[1734181677430,0.24692461,101400.0,101390.0,0.41668303]
[1734181677641,0.24692461,101400.0,101390.0,0.45928303]
[1734181677829,0.36481314,101400.0,101390.0,0.45928303]
[1734181678026,0.24692461,101400.0,101390.0,0.45928303]
[1734181678226,0.36483274,101400.0,101390.0,0.81549793]
[1734181678725,0.36483274,101400.0,101390.0,1.94549793]
[1734181679236,0.36483274,101400.0,101390.0,1.8842196]
[1734181681135,0.36483274,101400.0,101390.0,1.70954868]
[1734181681332,0.36483274,101400.0,101390.0,1.64827035]
[1734181682040,0.36483274,101400.0,101390.0,1.58699202]
[1734181682235,0.36483274,101400.0,101390.0,1.64827035]
[1734181684643,0.21490699,101400.0,101390.0,1.64827035]
[1734181685143,0.21490699,101400.0,101390.0,1.70954868]
[1734181685540,0.21490699,101400.0,101390.0,1.64827035]
[1734181686236,0.21490699,101400.0,101390.0,1.70954868]
[1734181687337,0.21490699,101400.0,101390.0,2.42427256]
[1734181687541,0.21490699,101400.0,101390.0,2.12933599]
[1734181689748,0.18740689,101400.0,101390.0,2.12933599]
[1734181689953,0.21205689,101400.0,101390.0,2.12933599]
[1734181691650,0.21205689,101400.0,101390.0,2.00677933]
[1734181691837,0.21205689,101400.0,101390.0,2.12933599]
[1734181692039,0.09414876,101400.0,101390.0,2.12933599]
[1734181692542,0.09414876,101400.0,101390.0,2.38706923]
[1734181692543,0.00011049,101400.0,101390.0,2.38706923]
[1734181692744,0.26483274,101410.0,101400.0,0.049307]
[1734181692945,0.26483274,101410.0,101400.0,0.50990993]
[1734181693546,0.26533274,101410.0,101400.0,0.50990993]
[1734181694242,0.26533274,101410.0,101400.0,0.51778993]
[1734181694752,0.26483274,101410.0,101400.0,0.51778993]
[1734181695539,0.26533274,101410.0,101400.0,0.51778993]
[1734181696653,0.26483274,101410.0,101400.0,0.51778993]
[1734181697155,0.26483274,101410.0,101400.0,1.64778993]
[1734181697354,0.11790813,101410.0,101400.0,1.64778993]
[1734181697648,0.11840813,101410.0,101400.0,1.64778993]
[1734181698556,0.11790813,101410.0,101400.0,1.64778993]
[1734181699650,0.11840813,101410.0,101400.0,1.64778993]
[1734181701448,0.11840813,101410.0,101400.0,2.00858993]
[1734181706156,0.11840813,101410.0,101400.0,1.64778993]
[1734181706566,0.11840813,101410.0,101400.0,2.00858993]
[1734181706859,0.11840813,101410.0,101400.0,1.64778993]
[1734181707252,0.11840813,101410.0,101400.0,2.36251381]
[1734181707453,0.11840813,101410.0,101400.0,2.00171381]
[1734181707955,0.0005,101410.0,101400.0,1.88393974]
[1734181708156,0.0005,101410.0,101400.0,2.24473974]
[1734181708356,0.0005,101410.0,101400.0,1.88393974]
[1734181708556,0.0005,101410.0,101400.0,1.90320306]
[1734181708856,0.0005,101410.0,101400.0,2.26400306]
[1734181709461,0.0005,101410.0,101400.0,2.02785325]
[1734181709758,0.0005,101410.0,101400.0,2.26407764]
[1734181709954,0.0005,101410.0,101400.0,2.26407782]
[1734181710156,0.0005,101410.0,101400.0,2.26407642]
[1734181710456,0.11840813,101410.0,101400.0,1.66705325]
[1734181710761,0.11840813,101410.0,101400.0,2.02785325]
[1734181710949,0.0005,101410.0,101400.0,2.02785325]
[1734181711550,0.11840813,101410.0,101400.0,2.02785325]
[1734181711757,0.11840813,101410.0,101400.0,2.34334069]
[1734181712153,0.11840813,101410.0,101400.0,2.08613086]
[1734181713552,0.11790813,101410.0,101400.0,2.08613086]
[1734181713757,0.20643351,101410.0,101400.0,2.08613086]
[1734181718267,0.13022305,101410.0,101400.0,2.08613086]
[1734181718857,0.13022305,101410.0,101400.0,2.30546164]
[1734181719562,0.13022305,101410.0,101400.0,2.18290498]
[1734181719757,0.13022305,101410.0,101400.0,2.30546164]
[1734181721466,0.13022305,101410.0,101400.0,2.30469461]
[1734181723371,0.13022305,101410.0,101400.0,2.28543129]
[1734181723972,0.13022305,101410.0,101400.0,2.54595091]
[1734181724271,0.13022305,101410.0,101400.0,2.28543129]
[1734181725974,0.13022305,101410.0,101400.0,2.28475175]
[1734181727070,0.13022305,101410.0,101400.0,1.92395175]
[1734181727268,0.13022305,101410.0,101400.0,2.28475175]
[1734181727973,0.04169767,101410.0,101400.0,2.34603008]
[1734181728378,0.04169767,101410.0,101400.0,2.30445847]
[1734181728579,0.01871742,101410.0,101400.0,2.3657368]
[1734181728873,0.08852069,101410.0,101400.0,1.2357368]
[1734181729280,0.08852069,101410.0,101400.0,2.01181292]
[1734181729481,0.08852069,101410.0,101400.0,2.36654288]
[1734181730076,0.08852069,101420.0,101400.0,2.01181292]
[1734181730273,0.27352461,101430.0,101420.0,0.049297]
[1734181730479,0.27352461,101430.0,101420.0,0.40833924]
[1734181731779,0.27352461,101430.0,101420.0,0.41621924]
[1734181732171,0.63432461,101430.0,101420.0,0.41621924]
[1734181732373,0.27352461,101430.0,101420.0,0.41621924]
[1734181732576,0.63432461,101430.0,101420.0,0.41621924]
[1734181737679,0.63432461,101430.0,101420.0,0.36596302]
[1734181737875,0.74489494,101430.0,101420.0,0.30468469]
[1734181738082,0.8599657,101430.0,101420.0,0.36596302]
[1734181738285,0.8106737,101430.0,101420.0,0.36596302]
[1734181739980,0.8106737,101430.0,101420.0,0.30468469]
[1734181740180,0.8106737,101430.0,101420.0,0.36596302]
[1734181740576,0.8106737,101430.0,101420.0,0.54330607]
[1734181740577,0.8111737,101430.0,101420.0,0.54330607]
[1734181741384,0.8111737,101430.0,101420.0,0.6045844]
[1734181741586,0.8106737,101430.0,101420.0,0.6045844]
[1734181741782,0.8106737,101430.0,101420.0,0.54330607]
[1734181742587,0.8111737,101430.0,101420.0,0.54330607]
[1734181743688,0.8106737,101430.0,101420.0,0.54330607]
[1734181744786,0.8111737,101430.0,101420.0,0.54330607]
[1734181745183,0.8111737,101430.0,101420.0,0.54332183]
[1734181745383,0.8111737,101430.0,101420.0,0.36596302]
[1734181745685,0.8111737,101430.0,101420.0,0.54332401]
[1734181745883,0.63482461,101430.0,101420.0,0.36596302]
[1734181746082,0.8111737,101430.0,101420.0,0.36596302]
[1734181746298,0.8111737,101430.0,101420.0,0.54332424]
[1734181746498,0.8111737,101430.0,101420.0,0.54332694]
[1734181746695,0.8111737,101430.0,101420.0,0.36596302]
[1734181747295,0.8111737,101430.0,101420.0,0.54332694]
[1734181747496,0.8111737,101430.0,101420.0,0.54332935]
[1734181747696,0.63482461,101430.0,101420.0,0.36596302]
[1734181748393,0.8111737,101430.0,101420.0,0.36596302]
[1734181748790,0.8111737,101430.0,101420.0,0.54333256]
[1734181748989,0.8111737,101430.0,101420.0,0.36596302]
[1734181749198,0.63482461,101430.0,101420.0,0.36596302]
[1734181750097,0.8111737,101430.0,101420.0,0.36596302]
[1734181750398,0.8604657,101430.0,101420.0,0.36596302]
[1734181750595,0.71354109,101430.0,101420.0,0.5433381]
[1734181752996,0.77481942,101430.0,101420.0,0.48205977]
[1734181753595,0.71354109,101430.0,101420.0,0.48205977]
[1734181753800,0.77481942,101430.0,101420.0,0.48205977]
[1734181754396,0.77481942,101430.0,101420.0,0.24557419]
[1734181754903,0.77481942,101430.0,101420.0,0.48205977]
[1734181755593,0.71354109,101430.0,101420.0,0.5433381]
[1734181755793,0.71354109,101430.0,101420.0,0.30685252]
[1734181756704,0.71354109,101430.0,101420.0,0.5433381]
[1734181757000,0.71354109,101430.0,101420.0,0.30685252]
[1734181757202,0.71354109,101430.0,101420.0,0.5433381]
[1734181757596,0.71354109,101430.0,101420.0,0.30685252]
[1734181757797,0.71304109,101430.0,101420.0,0.30685252]
[1734181758199,0.71304109,101430.0,101420.0,0.5433381]
[1734181758895,0.71304109,101430.0,101420.0,0.30685252]
[1734181759102,0.66374909,101430.0,101420.0,0.48205977]
[1734181759302,0.67104109,101430.0,101420.0,0.5433381]
[1734181762604,0.55597033,101430.0,101420.0,0.23455208]
[1734181762808,0.80281093,101430.0,101420.0,0.057177]
[1734181763009,0.59707033,101430.0,101420.0,0.057177]
[1734181763210,0.59707033,101430.0,101420.0,0.23455208]
[1734181763411,0.77411869,101430.0,101420.0,0.23455208]
[1734181763708,0.59707033,101430.0,101420.0,0.23455208]
[1734181764408,0.77410007,101430.0,101420.0,0.23455208]
[1734181764606,0.77410007,101430.0,101420.0,0.057177]
[1734181764999,0.77410007,101430.0,101420.0,0.23455208]
[1734181765404,0.77410007,101430.0,101420.0,0.00788]
[1734181766200,0.77410007,101430.0,101420.0,0.18525508]
[1734181766408,0.77410007,101430.0,101420.0,0.00788]
[1734181767104,0.59707033,101430.0,101420.0,0.00788]
[1734181769508,0.77402091,101430.0,101420.0,0.00788]
[1734181769713,0.59707033,101430.0,101420.0,0.00788]
[1734181769911,0.60803988,101430.0,101420.0,0.00788]
[1734181772114,0.7849923,101430.0,101420.0,0.00788]
[1734181776709,0.7438923,101430.0,101420.0,0.00788]
[1734181778921,0.56693988,101430.0,101420.0,0.00788]
[1734181787125,0.92773988,101430.0,101420.0,0.00788]
[1734181788111,1.10484356,101430.0,101420.0,0.00788]
[1734181788417,0.92773988,101430.0,101420.0,0.00788]
[1734181788614,1.10485419,101430.0,101420.0,0.18525508]
[1734181791320,0.38325419,101430.0,101420.0,0.18525508]
[1734181791622,0.92773988,101430.0,101420.0,0.18525508]
[1734181792025,1.10493405,101430.0,101420.0,0.18525508]
[1734181792409,0.92773988,101430.0,101420.0,0.18525508]
[1734181795419,0.78186155,101430.0,101420.0,0.23455208]
[1734181795730,1.04888048,101430.0,101420.0,0.23455208]
[1734181798128,1.04888048,101430.0,101420.0,0.18525508]
[1734181798427,0.84313988,101430.0,101420.0,0.18525508]
[1734181800831,0.84313988,101430.0,101420.0,0.23455208]
[1734181801130,0.78186155,101430.0,101420.0,0.23455208]
[1734181802028,0.95913271,101430.0,101420.0,0.23455208]
[1734181802825,0.78186155,101430.0,101420.0,0.23455208]
[1734181803329,0.770892,101430.0,101420.0,0.29583041]
[1734181803519,0.94813388,101430.0,101420.0,0.57481599]
[1734181803721,0.94813388,101430.0,101420.0,0.61711599]
[1734181804122,0.94813388,101430.0,101420.0,1.74711599]
[1734181804623,0.94813388,101430.0,101420.0,0.61711599]
[1734181806819,0.94813388,101430.0,101420.0,0.55583766]
[1734181807033,1.00941221,101430.0,101420.0,0.55583766]
[1734181807334,0.83217033,101430.0,101420.0,0.20325533]
[1734181807538,0.770892,101430.0,101420.0,0.20325533]
[1734181808228,0.94805098,101430.0,101420.0,0.61714648]
[1734181812635,1.09565502,101430.0,101420.0,0.61714648]
[1734181812829,1.09565589,101430.0,101420.0,0.61714648]
[1734181813232,0.94805098,101430.0,101420.0,0.61714648]
[1734181814333,1.00932931,101430.0,101420.0,0.31935892]
[1734181814528,1.00932931,101430.0,101420.0,0.27006192]
[1734181814928,1.00932931,101430.0,101420.0,0.22756192]
[1734181815233,1.05322931,101430.0,101420.0,0.22756192]
[1734181815429,1.05322931,101430.0,101420.0,0.23455892]
[1734181815632,1.05322931,101430.0,101420.0,0.18526192]
[1734181815839,1.05322931,101430.0,101420.0,0.00788]
[1734181816029,1.05317378,101430.0,101420.0,0.18526192]
[1734181816225,1.05317378,101430.0,101410.0,0.41389115]
[1734181816226,1.44403414,101430.0,101410.0,0.41389115]
[1734181816528,0.049302,101410.0,101400.0,0.17738192]
[1734181816731,0.69640147,101410.0,101400.0,0.17738192]
[1734181816931,0.68965984,101410.0,101400.0,0.17738192]
[1734181817532,0.68965984,101410.0,101400.0,0.18526192]
[1734181818441,0.68965984,101410.0,101400.0,0.00788]